bitfinex-derivatives/quotes_BTCF0:USTF0_20251025
["timestamp","ask_amount","ask_price","bid_price","bid_amount"]
[1761398793201,0.46357515,111810.0,111800.0,0.06831]
[1761398793597,0.46357515,111810.0,111800.0,0.19756068]
[1761398795903,0.43946129,111810.0,111800.0,0.19756068]
[1761398799809,0.43942129,111810.0,111800.0,0.19756068]
[1761398803008,0.43942129,111810.0,111800.0,0.22164627]
[1761398803407,0.43942129,111810.0,111800.0,0.05547]
[1761398803408,0.76942129,111810.0,111800.0,0.05547]
[1761398803900,0.79353515,111810.0,111800.0,0.05547]
[1761398805707,0.79353515,111810.0,111800.0,0.03289]
[1761398807411,0.9307546,111810.0,111800.0,0.011]
[1761398809112,0.93081922,111810.0,111800.0,0.011]
[1761398809318,0.9307546,111810.0,111800.0,0.011]
[1761398809709,0.93084827,111810.0,111800.0,0.011]
[1761398810021,0.9307546,111810.0,111800.0,0.011]
[1761398811412,0.8307546,111810.0,111800.0,0.011]
[1761398811609,0.70150392,111810.0,111800.0,0.011]
[1761398812321,1.30150392,111810.0,111800.0,0.011]
[1761398812614,1.11150392,111810.0,111800.0,0.03291]
[1761398814214,1.11158404,111810.0,111800.0,0.03291]
[1761398814412,1.11156799,111810.0,111800.0,0.03291]
[1761398814608,1.11150392,111810.0,111800.0,0.03291]
[1761398814811,1.2407546,111810.0,111800.0,0.03291]
[1761398815012,1.2407546,111810.0,111800.0,0.011]
[1761398815211,1.24082568,111810.0,111800.0,0.011]
[1761398815412,1.2407546,111810.0,111800.0,0.011]
[1761398815611,1.5107546,111810.0,111800.0,0.011]
[1761398816014,1.6107546,111810.0,111800.0,0.011]
[1761398818319,1.63084817,111810.0,111800.0,0.011]
[1761398818526,1.67887422,111810.0,111800.0,0.011]
[1761398818822,1.6307546,111810.0,111800.0,0.011]
[1761398819027,1.6107546,111810.0,111800.0,0.011]
[1761398819733,1.6307546,111810.0,111800.0,0.011]
[1761398819922,1.63084827,111810.0,111800.0,0.011]
[1761398820123,1.6307546,111810.0,111800.0,0.011]
[1761398820331,1.61084827,111810.0,111800.0,0.011]
[1761398820516,1.61083651,111810.0,111800.0,0.011]
[1761398820722,1.77251598,111810.0,111800.0,0.011]
[1761398820924,1.91251598,111810.0,111800.0,0.011]
[1761398821115,1.76700995,111810.0,111800.0,0.011]
[1761398821532,1.76700995,111810.0,111800.0,0.03291]
[1761398824428,1.76700995,111810.0,111800.0,0.011]
[1761398825129,1.91251598,111810.0,111800.0,0.011]
[1761398826323,1.9606356,111810.0,111800.0,0.011]
[1761398827431,1.92848378,111810.0,111800.0,0.011]
[1761398828024,1.99924683,111810.0,111800.0,0.011]
[1761398828225,2.01924683,111810.0,111800.0,0.011]
[1761398829134,1.99924683,111810.0,111800.0,0.011]
[1761398829337,2.01924683,111810.0,111800.0,0.011]
[1761398829530,2.01933473,111810.0,111800.0,0.011]
[1761398829736,2.01932049,111810.0,111800.0,0.011]
[1761398829936,2.01924683,111810.0,111800.0,0.011]
[1761398830429,0.02296,111790.0,111780.0,0.02408559]
[1761398830633,1.10078565,111790.0,111770.0,0.05923]
[1761398830832,0.20070264,111780.0,111770.0,0.05923]
[1761398831042,0.38285474,111780.0,111770.0,0.05923]
[1761398832429,0.40996649,111780.0,111770.0,0.05923]
[1761398832635,0.38585474,111780.0,111770.0,0.05923]
[1761398832835,0.38585474,111780.0,111770.0,0.20473603]
[1761398833137,0.38585474,111780.0,111770.0,0.05923]
[1761398834238,0.40995887,111780.0,111770.0,0.05923]
[1761398835135,0.41881734,111780.0,111770.0,0.05923]
[1761398835832,0.40995887,111780.0,111770.0,0.05923]
[1761398836345,0.37779082,111780.0,111770.0,0.05923]
[1761398836637,0.40995887,111780.0,111770.0,0.05923]
[1761398839841,0.31986066,111780.0,111770.0,0.35024206]
[1761398840044,0.31986066,111780.0,111770.0,0.22882162]
[1761398840529,0.31986066,111780.0,111770.0,0.22882218]
[1761398840726,0.00522066,111780.0,111770.0,0.22882218]
[1761398843237,0.00522066,111780.0,111770.0,0.82882218]
[1761398843743,0.00522066,111780.0,111770.0,0.46378781]
[1761398845642,0.00522066,111780.0,111770.0,0.49589181]
[1761398845837,0.0051521,111780.0,111770.0,0.4958881]
[1761398846045,0.02409158,111800.0,111790.0,0.05923]
[1761398846244,0.02409158,111800.0,111790.0,0.20473603]
[1761398846448,0.03557158,111800.0,111790.0,0.80473603]
[1761398846846,0.03557158,111800.0,111790.0,0.81352063]
[1761398847045,0.04705158,111800.0,111790.0,0.80473603]
[1761398847544,0.19255761,111800.0,111790.0,0.05923]
[1761398847850,0.22255761,111800.0,111790.0,0.05923]
[1761398848351,0.22255761,111800.0,111790.0,0.20473603]
[1761398848646,0.22255761,111800.0,111790.0,0.05923]
[1761398848950,0.23555761,111800.0,111790.0,0.05923]
[1761398849351,0.23555761,111800.0,111790.0,0.06023]
[1761398849352,0.25055761,111800.0,111790.0,0.06023]
[1761398850249,0.25155761,111800.0,111790.0,0.06023]
[1761398851549,0.2218568,111800.0,111790.0,0.06023]
[1761398852257,0.2218568,111800.0,111790.0,0.66023]
[1761398856553,0.10605158,111800.0,111790.0,0.66023]
[1761398856957,0.2218568,111800.0,111790.0,0.66023]
[1761398857953,0.2218568,111800.0,111790.0,0.77603522]
[1761398859146,0.10605158,111800.0,111790.0,0.77603522]
[1761398859347,0.42065158,111800.0,111790.0,0.77603522]
[1761398859851,0.39656,111800.0,111790.0,0.77603522]
[1761398860266,0.39656,111800.0,111790.0,0.66023]
[1761398860464,0.39656,111800.0,111790.0,0.77603522]
[1761398861358,0.3436,111800.0,111790.0,0.77603522]
[1761398863159,0.36769158,111800.0,111790.0,0.77603522]
[1761398863850,0.3436,111800.0,111790.0,0.17603522]
[1761398865555,0.3436,111800.0,111790.0,0.77603522]
[1761398867258,0.3436,111800.0,111790.0,0.80011723]
[1761398867458,0.029,111800.0,111790.0,0.80011723]
[1761398867659,0.029,111800.0,111790.0,0.20011723]
[1761398868358,0.05309158,111800.0,111790.0,0.20011723]
[1761398869857,0.029,111800.0,111790.0,0.20813922]
[1761398870458,0.029,111800.0,111790.0,0.89758292]
[1761398871558,0.029,111800.0,111790.0,0.29758292]
[1761398875457,0.029,111800.0,111790.0,0.89758292]
[1761398878162,0.029,111800.0,111790.0,0.80813922]
[1761398879159,0.029,111800.0,111790.0,0.89758292]
[1761398880661,0.029,111800.0,111790.0,0.91039177]
[1761398883073,0.029,111800.0,111790.0,0.90238964]
[1761398883765,0.029,111800.0,111790.0,0.93449364]
[1761398886566,0.029,111800.0,111790.0,0.91039177]
[1761398887158,0.029,111800.0,111790.0,0.31039177]
[1761398887465,0.029,111800.0,111790.0,0.35854778]
[1761398887968,0.07921963,111820.0,111810.0,0.0571]
[1761398888162,0.14921963,111820.0,111810.0,0.18571407]
[1761398888765,0.14921963,111820.0,111810.0,0.19467577]
[1761398889166,0.11705158,111820.0,111810.0,0.19467577]
[1761398889565,0.13705158,111820.0,111810.0,0.19567577]
[1761398891363,0.13705158,111820.0,111810.0,0.62351817]
[1761398891364,0.04409158,111820.0,111810.0,0.62351817]
[1761398891667,0.02,111820.0,111810.0,0.63152747]
[1761398893262,0.12408,111860.0,111850.0,0.02203]
[1761398893263,0.16772805,111860.0,111850.0,0.02203]
[1761398893462,0.70920805,111860.0,111850.0,0.02203]
[1761398893665,0.72515962,111860.0,111850.0,0.04343]
[1761398894868,0.72515962,111860.0,111850.0,0.05043]
[1761398898570,1.32515962,111860.0,111850.0,0.05043]
[1761398900273,1.32515962,111860.0,111850.0,0.0641]
[1761398900874,1.35725178,111860.0,111850.0,0.0641]
[1761398903171,1.30913216,111860.0,111850.0,0.0641]
[1761398905273,1.43774623,111860.0,111850.0,0.007]
[1761398905482,1.53774623,111860.0,111850.0,0.02903]
[1761398905786,1.58586585,111860.0,111850.0,0.02903]
[1761398909188,1.55377369,111860.0,111850.0,0.02903]
[1761398910090,1.58587376,111860.0,111850.0,0.02903]
[1761398910390,1.58587376,111860.0,111850.0,0.007]
[1761398910691,1.58587376,111860.0,111850.0,0.02903]
[1761398910887,1.55377369,111860.0,111850.0,0.02903]
[1761398913691,1.55377369,111860.0,111850.0,0.05043]
[1761398915989,1.55377369,111860.0,111850.0,0.02903]
[1761398916485,1.55377369,111860.0,111850.0,0.007]
[1761398916486,0.95377369,111860.0,111850.0,0.007]
[1761398916686,0.90565407,111860.0,111850.0,0.007]
[1761398916892,1.52565407,111860.0,111850.0,0.007]
[1761398918194,1.57388945,111860.0,111850.0,0.007]
[1761398920194,1.52565407,111860.0,111850.0,0.007]
[1761398922794,0.99001183,111860.0,111850.0,0.007]
[1761398927803,1.59001183,111860.0,111850.0,0.007]
[1761398929302,0.99001183,111860.0,111850.0,0.007]
[1761398933108,0.92565407,111860.0,111850.0,0.007]
[1761398933414,0.99000835,111860.0,111850.0,0.007]
[1761398941907,1.23480835,111860.0,111850.0,0.007]
[1761398942712,1.22192975,111860.0,111850.0,0.007]
[1761398944015,1.46192975,111860.0,111850.0,0.007]
[1761398946511,1.39757547,111860.0,111850.0,0.007]
[1761398947806,1.21802267,111860.0,111850.0,0.007]
[1761398948007,1.23802267,111860.0,111850.0,0.05201]
[1761398948208,1.23802267,111860.0,111850.0,0.06568]
[1761398949612,1.15757547,111860.0,111850.0,0.06568]
[1761398949919,1.23802267,111860.0,111850.0,0.06568]
[1761398951415,1.15757547,111860.0,111850.0,0.06568]
[1761398951616,1.13757547,111860.0,111850.0,0.06568]
[1761398951818,1.15757547,111860.0,111850.0,0.06568]
[1761398952219,1.10195987,111860.0,111850.0,0.06568]
[1761398953822,1.20195987,111860.0,111850.0,0.06568]
[1761398954125,1.22195987,111860.0,111850.0,0.06568]
[1761398954422,1.20195987,111860.0,111850.0,0.06568]
[1761398965243,1.33195987,111860.0,111850.0,0.06568]
[1761398966847,1.20195987,111860.0,111850.0,0.06568]
[1761398967045,1.15757547,111860.0,111850.0,0.05201]
[1761398967241,1.13757547,111860.0,111850.0,0.007]
[1761398967446,1.39757547,111860.0,111850.0,0.007]
[1761398971651,1.15277547,111860.0,111850.0,0.007]
[1761398973149,1.23322267,111860.0,111850.0,0.007]
[1761398981653,1.15277547,111860.0,111850.0,0.007]
[1761398983157,1.2171733,111860.0,111850.0,0.007]
[1761398987359,1.33290877,111860.0,111850.0,0.007]
[1761398987545,1.26851094,111860.0,111850.0,0.007]
[1761398987749,1.15277547,111860.0,111850.0,0.007]
[1761398988154,1.26851094,111860.0,111850.0,0.007]
[1761398988358,1.15277547,111860.0,111850.0,0.007]
[1761398989757,0.02296,111840.0,111830.0,0.05953]
[1761398990059,1.13851094,111840.0,111830.0,0.05953]
[1761398990856,1.23851094,111840.0,111830.0,0.05953]
[1761398991554,1.30290279,111840.0,111830.0,0.05953]
[1761398992062,1.30290279,111840.0,111830.0,0.06853]
[1761398992762,1.37359687,111840.0,111830.0,0.06853]
[1761398993770,0.73439185,111840.0,111830.0,0.06853]
[1761398993950,0.06439185,111850.0,111840.0,0.03576]
[1761398994154,0.02412393,111860.0,111850.0,0.03576]
[1761398994351,0.02412393,111860.0,111850.0,0.77425547]
[1761398994556,0.33900393,111860.0,111850.0,0.17425547]
[1761398995062,0.34900393,111860.0,111850.0,0.17425547]
[1761398995462,0.34900393,111860.0,111850.0,1.67425547]
[1761398996364,0.39275393,111860.0,111850.0,1.67425547]
[1761398996766,0.39275393,111860.0,111850.0,1.67525547]
[1761398997062,0.37016393,111860.0,111850.0,1.67525547]
[1761398997262,0.34604,111860.0,111850.0,1.67525547]
[1761398998569,0.34604,111860.0,111850.0,1.67725547]
[1761399001268,0.34604,111860.0,111850.0,2.27725547]
[1761399002371,0.32488,111860.0,111850.0,2.27725547]
[1761399002769,0.32488,111860.0,111850.0,2.29003032]
[1761399007384,0.32488,111860.0,111850.0,2.29877138]
[1761399010584,0.32488,111860.0,111850.0,2.29003032]
[1761399016084,0.34675,111860.0,111850.0,2.29003032]
[1761399016891,0.34675,111860.0,111850.0,1.69003032]
[1761399018578,0.34675,111860.0,111850.0,1.56152]
[1761399018579,0.36889,111860.0,111850.0,1.56152]
[1761399018785,0.37763196,111860.0,111850.0,0.06152]
[1761399019785,0.36889,111860.0,111850.0,0.06152]
[1761399020376,0.39301393,111860.0,111850.0,0.06152]
[1761399023191,0.40105864,111860.0,111850.0,0.06152]
[1761399023391,0.41714426,111860.0,111850.0,0.06152]
[1761399024291,0.59862426,111860.0,111850.0,0.04886]
[1761399024494,0.71474343,111860.0,111850.0,0.04886]
[1761399027095,0.65035158,111860.0,111850.0,0.04886]
[1761399028090,0.86325375,111860.0,111850.0,0.003]
[1761399028896,1.02325375,111860.0,111850.0,0.003]
[1761399029799,0.80325375,111860.0,111850.0,0.003]
[1761399030899,0.82325375,111860.0,111850.0,0.003]
[1761399032693,0.80325375,111860.0,111850.0,0.04748]
[1761399033101,0.82325375,111860.0,111850.0,0.04748]
[1761399033298,0.7588619,111860.0,111850.0,0.04748]
[1761399034196,0.61035158,111860.0,111850.0,0.04748]
[1761399034398,0.65855085,111860.0,111850.0,0.04748]
[1761399034798,0.64707085,111860.0,111850.0,0.04748]
[1761399034999,0.64707085,111860.0,111850.0,0.06042]
[1761399036201,0.54708927,111860.0,111850.0,0.06042]
[1761399038203,0.55856927,111860.0,111850.0,0.04748]
[1761399039299,0.55856927,111860.0,111850.0,0.06042]
[1761399039501,0.54708927,111860.0,111850.0,0.06042]
[1761399041506,0.23220927,111860.0,111850.0,0.06042]
[1761399041696,0.54656927,111860.0,111850.0,0.06042]
[1761399045007,0.72275217,111860.0,111850.0,0.003]
[1761399045306,0.70275217,111860.0,111850.0,0.003]
[1761399045995,0.80273375,111860.0,111850.0,0.003]
[1761399046908,0.82273375,111860.0,111850.0,0.003]
[1761399047107,0.80273375,111860.0,111850.0,0.003]
[1761399050310,0.80273375,111860.0,111850.0,0.02514]
[1761399050808,0.80273375,111860.0,111850.0,0.003]
[1761399051411,0.82273375,111860.0,111850.0,0.003]
[1761399052305,0.80273375,111860.0,111850.0,0.003]
[1761399052911,0.80273375,111860.0,111850.0,0.02514]
[1761399053905,0.80273375,111860.0,111850.0,0.04703]
[1761399054111,0.82273375,111860.0,111850.0,0.04703]
[1761399057009,0.82273375,111860.0,111850.0,0.003]
[1761399057010,0.66273375,111860.0,111850.0,0.003]
[1761399057205,0.9783419,111860.0,111850.0,0.003]
[1761399058016,0.9783419,111860.0,111850.0,0.04703]
[1761399058916,1.04933793,111860.0,111850.0,0.04703]
[1761399060814,1.11372509,111860.0,111850.0,0.04703]
[1761399061919,1.09372509,111860.0,111850.0,0.04703]
[1761399062119,1.11372509,111860.0,111850.0,0.04703]
[1761399062723,0.98521477,111860.0,111850.0,0.04703]
[1761399062927,1.11372509,111860.0,111850.0,0.04703]
[1761399063318,1.09372509,111860.0,111850.0,0.04703]
[1761399064813,1.08092285,111860.0,111850.0,0.04703]
[1761399065817,1.08092285,111860.0,111820.0,0.08204113]
[1761399065818,0.01167,111850.0,111820.0,0.08204113]
[1761399066122,0.23999586,111830.0,111820.0,0.05795]
[1761399066422,0.30999586,111830.0,111820.0,0.05795]
[1761399067923,0.30999586,111830.0,111820.0,0.06795]
[1761399069027,0.30999586,111830.0,111820.0,0.06595]
[1761399070832,0.26170458,111830.0,111820.0,0.06595]
[1761399071530,0.26170458,111830.0,111820.0,0.66595]
[1761399071829,0.26170458,111830.0,111820.0,0.06595]
[1761399072027,0.26170458,111830.0,111820.0,0.18165808]
[1761399072227,0.26170458,111830.0,111820.0,0.06595]
[1761399074324,0.26170458,111830.0,111820.0,0.18165808]
[1761399076732,0.26170458,111830.0,111820.0,0.78165808]
[1761399076932,0.26170458,111830.0,111820.0,0.18165808]
[1761399078334,0.1459965,111830.0,111820.0,0.18165808]
[1761399078633,0.26170458,111830.0,111820.0,0.18165808]
[1761399080537,0.1459965,111830.0,111820.0,0.18165808]
[1761399080738,0.26170458,111830.0,111820.0,0.18165808]
[1761399081942,0.26170458,111830.0,111820.0,0.78165808]
[1761399086750,0.1459965,111830.0,111820.0,0.78165808]
[1761399086942,0.26170458,111830.0,111820.0,0.78165808]
[1761399087645,0.30999586,111830.0,111820.0,0.78165808]
[1761399088740,0.19428778,111830.0,111820.0,0.78165808]
[1761399090142,0.1459965,111830.0,111820.0,0.78165808]
[1761399090947,0.19428778,111830.0,111820.0,0.78165808]
[1761399091448,0.19428778,111830.0,111820.0,0.66595]
[1761399091648,0.19428778,111830.0,111820.0,0.78165808]
[1761399094148,0.16210128,111830.0,111820.0,0.78165808]
[1761399097454,0.47630128,111830.0,111820.0,0.78165808]
[1761399112469,0.59200936,111830.0,111820.0,0.78165808]
[1761399113761,0.59200936,111830.0,111820.0,0.66595]
[1761399113964,0.59200936,111830.0,111820.0,0.78165808]
[1761399116066,0.47630128,111830.0,111820.0,0.78165808]
[1761399118569,0.14058128,111830.0,111820.0,0.18165808]
[1761399118768,0.43245128,111830.0,111820.0,0.18165808]
[1761399119258,0.45488128,111830.0,111820.0,0.18165808]
[1761399120162,0.04829128,111830.0,111820.0,0.18165808]
[1761399120361,0.39466086,111830.0,111820.0,0.18165808]
[1761399121170,0.39465193,111830.0,111820.0,0.18165808]
[1761399121664,0.39465193,111830.0,111820.0,0.06595]
[1761399121864,0.39465193,111830.0,111820.0,0.18165808]
[1761399123072,0.34636065,111830.0,111820.0,0.18165808]
[1761399123469,0.34636065,111830.0,111820.0,0.20574921]
[1761399124274,0.36777065,111830.0,111820.0,0.09004113]
[1761399124571,0.34636065,111830.0,111820.0,0.20574921]
[1761399125273,0.37050208,111830.0,111820.0,0.80574921]
[1761399126276,0.37050208,111830.0,111820.0,2.30574921]
[1761399126775,0.37050208,111830.0,111820.0,2.31860891]
[1761399129181,0.33830143,111830.0,111820.0,2.31860891]
[1761399129781,0.37050208,111830.0,111820.0,2.31860891]
[1761399133284,0.37050208,111830.0,111820.0,2.29451778]
[1761399133783,0.37050208,111830.0,111820.0,2.31860891]
[1761399134884,0.39191208,111830.0,111820.0,2.29451778]
[1761399136183,0.39191208,111830.0,111820.0,2.31860891]
[1761399136985,0.39191208,111830.0,111820.0,1.71860891]
[1761399137892,0.37050208,111830.0,111820.0,1.71860891]
[1761399138491,0.39191208,111830.0,111820.0,1.71860891]
[1761399138689,0.41437208,111830.0,111820.0,1.71860891]
[1761399140388,0.41437208,111830.0,111820.0,2.31860891]
[1761399143894,0.39191208,111830.0,111820.0,2.31860891]
[1761399148096,0.36777065,111830.0,111820.0,2.31860891]
[1761399153100,0.34636065,111830.0,111820.0,2.31860891]
[1761399160696,0.33831374,111830.0,111820.0,2.31860891]
[1761399161101,0.36108374,111830.0,111820.0,2.31860891]
[1761399163005,0.33693,111830.0,111820.0,2.31860891]
[1761399163211,0.36913065,111830.0,111820.0,2.31860891]
[1761399166404,0.34636065,111830.0,111820.0,2.31860891]
[1761399166613,0.03220065,111830.0,111820.0,1.71860891]
[1761399167400,0.05635328,111830.0,111820.0,1.71860891]
[1761399169014,0.02415263,111830.0,111820.0,1.75069321]
[1761399169216,0.02415263,111830.0,111820.0,1.71860891]
[1761399171717,0.02415263,111830.0,111820.0,2.31860891]
[1761399173319,0.02415263,111830.0,111820.0,2.35069321]
[1761399174217,0.39320328,111840.0,111830.0,0.05817]
[1761399174517,0.39320328,111840.0,111830.0,0.18673778]
[1761399174715,0.05635328,111840.0,111830.0,0.18673778]
[1761399175318,0.02415263,111840.0,111830.0,0.21082891]
[1761399176215,0.02415263,111840.0,111830.0,0.21282891]
[1761399178816,0.02415263,111840.0,111830.0,0.81282891]
[1761399181717,0.39320328,111850.0,111840.0,0.05741]
[1761399182018,0.48320328,111850.0,111840.0,0.18597778]
[1761399183414,0.48420328,111850.0,111840.0,0.18597778]
[1761399183917,0.46143328,111850.0,111840.0,0.18597778]
[1761399184308,0.46143328,111850.0,111840.0,0.19475741]
[1761399185720,0.46043328,111850.0,111840.0,0.19475741]
[1761399185923,0.46043328,111850.0,111840.0,0.19675741]
[1761399186116,0.48267328,111850.0,111840.0,0.19675741]
[1761399186726,0.48267328,111850.0,111840.0,0.29952993]
[1761399186926,0.48267328,111850.0,111840.0,1.79952993]
[1761399188721,0.46043328,111850.0,111840.0,1.79952993]
[1761399189126,0.42823263,111850.0,111840.0,1.79952993]
[1761399189927,0.42811263,111850.0,111840.0,1.79952993]
[1761399191829,0.11415263,111850.0,111840.0,1.79952993]
[1761399194032,0.15962263,111850.0,111840.0,1.79952993]
[1761399195831,0.15962263,111850.0,111840.0,2.39952993]
[1761399196833,0.15962263,111850.0,111840.0,1.82362106]
[1761399198720,0.15962263,111850.0,111840.0,1.59228076]
[1761399198927,0.19182328,111850.0,111840.0,0.05941]
[1761399199127,0.55749343,111850.0,111840.0,0.17508015]
[1761399199435,0.44182328,111850.0,111840.0,0.17508015]
[1761399201235,0.44182328,111850.0,111840.0,0.19917128]
[1761399201738,0.40962263,111850.0,111840.0,0.19917128]
[1761399204237,0.44182328,111850.0,111840.0,0.08350113]
[1761399204425,0.44182328,111850.0,111840.0,0.19917128]
[1761399211441,0.10182328,111850.0,111840.0,0.19917128]
[1761399211646,0.17962263,111850.0,111840.0,0.31484143]
[1761399211849,0.21182328,111850.0,111840.0,0.31484143]
[1761399212949,0.16635328,111850.0,111840.0,0.31484143]
[1761399213137,0.13415263,111850.0,111840.0,0.34692573]
[1761399213342,0.13415263,111850.0,111840.0,0.31484143]
[1761399216856,0.02415263,111850.0,111840.0,0.43632953]
[1761399217251,0.02415263,111850.0,111840.0,0.40424523]
[1761399223155,0.02415263,111850.0,111840.0,1.00424523]
[1761399223357,0.41464328,111860.0,111850.0,0.05797]
[1761399223661,0.41464328,111860.0,111850.0,0.17364015]
[1761399225061,0.41564328,111860.0,111850.0,0.17364015]
[1761399225360,0.10160328,111860.0,111850.0,0.17364015]
[1761399225668,0.06940263,111860.0,111850.0,0.19773128]
[1761399226165,0.06840263,111860.0,111850.0,0.19973128]
[1761399226365,0.02415263,111860.0,111850.0,0.28912708]
[1761399226664,0.10060328,111870.0,111860.0,0.05797]
[1761399226865,0.39060328,111870.0,111860.0,0.17364015]
[1761399228165,0.35940263,111870.0,111860.0,0.20689711]
[1761399228359,0.35940263,111870.0,111860.0,0.18280598]
[1761399228659,0.35940263,111870.0,111850.0,0.38390543]
[1761399228660,0.48674278,111870.0,111850.0,0.38390543]
[1761399228852,0.48674278,111870.0,111860.0,0.02409113]
[1761399229056,1.10066278,111870.0,111850.0,0.19773128]
[1761399229256,0.05573,111860.0,111850.0,0.19773128]
[1761399229463,0.08984447,111860.0,111850.0,0.19773128]
[1761399230363,0.06573,111860.0,111850.0,0.19773128]
[1761399231066,0.08984447,111860.0,111850.0,0.19773128]
[1761399231363,0.08984447,111860.0,111850.0,0.19973128]
[1761399232763,0.07836447,111860.0,111850.0,0.19973128]
[1761399246376,0.11056512,111860.0,111850.0,0.19973128]
[1761399246871,0.11056512,111860.0,111850.0,0.08406113]
[1761399247674,0.11056512,111860.0,111850.0,0.07029113]
[1761399247872,0.67252562,111860.0,111850.0,0.002]
[1761399248772,0.83423434,111860.0,111850.0,0.002]
[1761399249080,0.49243846,111860.0,111850.0,0.002]
[1761399249572,0.44423434,111860.0,111850.0,0.002]
[1761399249778,0.46423434,111860.0,111850.0,0.002]
[1761399249975,0.30423434,111860.0,111850.0,0.002]
[1761399250283,1.24423434,111860.0,111850.0,0.002]
[1761399250482,0.76423434,111860.0,111850.0,0.002]
[1761399250785,0.04453,111830.0,111820.0,0.08281113]
[1761399250967,0.40012,111830.0,111820.0,0.08281113]
[1761399251279,0.40012,111830.0,111820.0,1.58281113]
[1761399252675,0.42420713,111830.0,111820.0,1.55872]
[1761399252983,0.42420713,111830.0,111820.0,1.56372]
[1761399253280,0.38845,111830.0,111820.0,1.56372]
[1761399253473,0.41253713,111830.0,111820.0,1.56372]
[1761399259187,0.38845,111830.0,111820.0,1.56372]
[1761399270802,0.38845,111830.0,111820.0,1.69224276]
[1761399270988,0.02408713,111840.0,111820.0,1.69224276]
[1761399271194,0.02408713,111840.0,111830.0,0.18658276]
[1761399271394,0.15048,111840.0,111830.0,0.21067389]
[1761399272397,0.04574713,111860.0,111830.0,0.27599456]
[1761399272603,0.13793713,111860.0,111850.0,0.18593276]
[1761399272807,0.40729713,111860.0,111850.0,0.18593276]
[1761399273499,0.43941331,111860.0,111850.0,0.05741]
[1761399273801,0.44241331,111860.0,111850.0,0.05741]
[1761399274903,0.41029713,111860.0,111850.0,0.05741]
[1761399277204,0.17305331,111860.0,111850.0,0.19498925]
[1761399277505,0.45505713,111860.0,111850.0,0.19498925]
[1761399277806,0.45505713,111860.0,111850.0,0.18593276]
[1761399279709,0.45205713,111860.0,111850.0,0.18793276]
[1761399282109,0.38201713,111870.0,111860.0,0.03597]
[1761399282303,0.63201713,111870.0,111860.0,0.18593276]
[1761399283213,0.63301713,111870.0,111860.0,0.18593276]
[1761399284112,0.60893,111870.0,111860.0,0.18593276]
[1761399285611,0.63301713,111870.0,111860.0,0.18593276]
[1761399286113,0.60893,111870.0,111860.0,0.18593276]
[1761399290518,0.60893,111870.0,111860.0,0.05741]
[1761399293321,0.91893,111870.0,111860.0,0.05741]
[1761399294419,0.9306,111870.0,111860.0,0.04474]
[1761399294621,0.5906,111870.0,111860.0,0.04474]
[1761399295420,0.3706,111870.0,111860.0,0.04474]
[1761399295622,0.8506,111870.0,111860.0,0.04474]
[1761399299122,0.87468713,111870.0,111860.0,0.04474]
[1761399300024,0.61301713,111870.0,111860.0,0.18720276]
[1761399300415,0.59082713,111870.0,111860.0,0.21127879]
[1761399300616,0.231,111870.0,111860.0,0.21127879]
[1761399300815,0.031,111870.0,111860.0,0.81127879]
[1761399301218,0.031,111870.0,111860.0,0.21127879]
[1761399301419,0.031,111870.0,111860.0,0.08275603]
[1761399301633,0.031,111870.0,111860.0,0.21127879]
[1761399302528,0.03,111870.0,111860.0,0.21327879]
[1761399304121,0.05408713,111870.0,111860.0,0.21327879]
[1761399306130,0.05408713,111870.0,111860.0,0.81327879]
[1761399308728,0.02408713,111870.0,111860.0,0.91598435]
[1761399309835,0.06864713,111870.0,111860.0,0.20037019]
[1761399310020,0.07864713,111870.0,111860.0,0.20037019]
[1761399318734,0.01,111870.0,111860.0,0.34806865]
[1761399321135,0.03408713,111870.0,111860.0,0.34806865]
[1761399321642,0.01,111870.0,111860.0,0.34806865]
[1761399323233,0.03408713,111870.0,111860.0,0.34806865]
[1761399323930,0.05610713,111870.0,111860.0,0.34806865]
[1761399325237,0.07864713,111870.0,111860.0,0.34806865]
[1761399325439,0.07864713,111870.0,111860.0,0.23245449]
[1761399327939,0.07864713,111870.0,111860.0,0.20837846]
[1761399332041,0.07864713,111870.0,111860.0,0.0927643]
[1761399332242,0.07864713,111870.0,111860.0,0.20837846]
[1761399340552,0.07864713,111870.0,111860.0,0.23251874]
[1761399343647,0.16060923,111870.0,111860.0,0.05822458]
[1761399343840,0.16060923,111870.0,111850.0,0.04815601]
[1761399343841,0.0567,111860.0,111850.0,1e-08]
[1761399344146,0.0567,111820.0,111810.0,0.17493416]
[1761399344337,0.18231416,111820.0,111810.0,0.05932]
[1761399344539,0.18231416,111820.0,111810.0,0.17493416]
[1761399344540,0.0667,111820.0,111810.0,0.17493416]
[1761399344846,0.05369,111820.0,111810.0,0.17493416]
[1761399345046,0.07781966,111820.0,111810.0,0.17493416]
[1761399345244,0.05369,111820.0,111810.0,0.17493416]
[1761399345944,0.05369,111820.0,111810.0,0.18193416]
[1761399349751,0.05369,111820.0,111810.0,0.06632]
[1761399350048,0.05369,111820.0,111810.0,0.18193416]
[1761399350236,0.05369,111820.0,111750.0,9.998e-05]
[1761399350237,0.01386,111810.0,111750.0,9.998e-05]
[1761399350439,0.05755,111780.0,111770.0,0.11561416]
[1761399350651,0.05755,111780.0,111770.0,0.45695416]
[1761399350845,0.05755,111780.0,111770.0,0.47635416]
[1761399351549,0.05855,111780.0,111770.0,0.51035416]
[1761399354351,0.001,111780.0,111770.0,0.52130416]
[1761399354753,0.001,111780.0,111770.0,0.63691832]
[1761399356055,0.001,111780.0,111770.0,1.23691832]
[1761399356949,0.001,111780.0,111770.0,0.63691832]
[1761399357151,0.001,111780.0,111770.0,0.32171832]
[1761399357546,0.001,111780.0,111770.0,0.63703832]
[1761399358153,0.001,111780.0,111770.0,0.32171832]
[1761399358453,0.001,111780.0,111770.0,0.63703832]
[1761399361159,0.001,111780.0,111770.0,0.32171832]
[1761399361355,0.001,111780.0,111770.0,0.63703832]
[1761399362155,0.02281,111780.0,111770.0,1.23699832]
[1761399362355,0.04584,111780.0,111770.0,0.63699832]
[1761399363156,0.04584,111780.0,111770.0,0.32171832]
[1761399363357,0.04584,111780.0,111770.0,0.63703832]
[1761399363752,0.04584,111780.0,111770.0,0.52138416]
[1761399364248,0.001,111780.0,111770.0,0.63699832]
[1761399365249,0.05877,111780.0,111770.0,0.52138416]
[1761399365449,0.04614,111780.0,111770.0,0.52138416]